fUST/lending_fUST_20250210
["ID","MTS","AMOUNT","RATE_DAILY","PERIOD"]
[352599372,1739189433689,-500.0,0.00010958,2]
[352599373,1739189433700,-500.0,0.00010958,2]
[352599374,1739189433711,-500.0,0.00010958,2]
[352599375,1739189433720,-500.0,0.00010958,2]
[352599376,1739189433730,-228.72462489,0.00010958,2]
[352599377,1739189433740,-536.46,0.00010958,2]
[352599378,1739189433749,-500.0,0.00010958,2]
[352599379,1739189433760,-276.00400845,0.00010958,2]
[352599380,1739189433770,-500.0,0.00010958,2]
[352599381,1739189433781,-500.0,0.00010958,2]
[352599382,1739189433791,-181.85589958,0.00010958,2]
[352599383,1739189433801,-500.0,0.00010958,2]
[352599384,1739189433811,-500.0,0.00010958,2]
[352599385,1739189433821,-500.0,0.00010958,2]
[352599386,1739189433831,-500.0,0.00010958,2]
[352599387,1739189433841,-1594.08,0.00010958,2]
[352599388,1739189433852,-500.0,0.00010958,2]
[352599389,1739189433864,-500.0,0.00010958,2]
[352599390,1739189433874,-504.6760624,0.00010958,2]
[352599391,1739189433884,-506.96944338,0.00010958,2]
[352599392,1739189433895,-500.0,0.00010958,2]
[352599393,1739189433904,-500.0,0.00010958,2]
[352599394,1739189433914,-500.0,0.00010958,2]
[352599395,1739189433924,-500.0,0.00010958,2]
[352599396,1739189433935,-500.0,0.00010958,2]
[352599397,1739189433944,-500.0,0.00010958,2]
[352599398,1739189433955,-500.0,0.00010958,2]
[352599399,1739189433965,-500.0,0.00010958,2]
[352599400,1739189433974,-531.01,0.00010958,2]
[352599401,1739189433983,-500.0,0.00010958,2]
[352599402,1739189433993,-404.48,0.00010958,2]
[352599403,1739189434002,-500.0,0.00010958,2]
[352599404,1739189434011,-500.0,0.00010958,2]
[352599405,1739189434021,-500.0,0.00010958,2]
[352599406,1739189434031,-500.0,0.00010958,2]
[352599407,1739189434040,-500.0,0.00010958,2]
[352599408,1739189434051,-500.0,0.00010958,2]
[352599409,1739189434061,-500.0,0.00010958,2]
[352599410,1739189434071,-500.0,0.00010958,2]
[352599411,1739189434080,-500.0,0.00010958,2]
[352599412,1739189434090,-501.50463004,0.00010958,2]
[352599413,1739189434100,-500.0,0.00010958,2]
[352599414,1739189434110,-504.08821107,0.00010958,2]
[352599415,1739189434120,-327.18047127,0.00010958,2]
[352599416,1739189434130,-500.0,0.00010958,2]
[352599417,1739189434140,-500.0,0.00010958,2]
[352599418,1739189434150,-500.0,0.00010958,2]
[352599419,1739189434161,-500.0,0.00010958,2]
[352599420,1739189434171,-1871.76,0.00010958,2]
[352599421,1739189434180,-500.0,0.00010958,2]
[352599422,1739189434190,-2807.91,0.00010958,2]
[352599423,1739189434200,-501.58816451,0.00010958,2]
[352599424,1739189434210,-500.0,0.00010958,2]
[352599425,1739189434220,-1308.92,0.00010958,2]
[352599426,1739189434230,-500.0,0.00010958,2]
[352599427,1739189434239,-500.0,0.00010958,2]
[352599428,1739189434249,-500.0,0.00010958,2]
[352599429,1739189434259,-500.0,0.00010958,2]
[352599430,1739189434270,-500.0,0.00010958,2]
[352599431,1739189434281,-738.83,0.00010958,2]
[352599432,1739189434292,-500.0,0.00010958,2]
[352599433,1739189434303,-500.0,0.00010958,2]
[352599434,1739189434312,-500.0,0.00010958,2]
[352599435,1739189434322,-500.0,0.00010958,2]
[352599436,1739189434332,-500.0,0.00010958,2]
[352599437,1739189434342,-500.0,0.00010958,2]
[352599438,1739189434351,-1414.35,0.00010958,2]
[352599439,1739189434361,-500.0,0.00010958,2]
[352599440,1739189434371,-500.0,0.00010958,2]
[352599441,1739189434381,-500.0,0.00010958,2]
[352599442,1739189434391,-526.69,0.00010958,2]
[352599443,1739189434401,-500.0,0.00010958,2]
[352599444,1739189434411,-6325.24,0.00010958,2]
[352599445,1739189434420,-500.0,0.00010958,2]
[352599446,1739189434429,-500.0,0.00010958,2]
[352599447,1739189434439,-511.93809564,0.00010958,2]
[352599448,1739189434449,-500.0,0.00010958,2]
[352599449,1739189434459,-500.0,0.00010958,2]
[352599450,1739189434468,-500.0,0.00010958,2]
[352599451,1739189434478,-500.0,0.00010958,2]
[352599452,1739189434488,-500.0,0.00010958,2]
[352599453,1739189434497,-500.0,0.00010958,2]
[352599454,1739189434507,-500.0,0.00010958,2]
[352599455,1739189434517,-500.0,0.00010958,2]
[352599456,1739189434527,-14833.69370319,0.00010958,2]
[352599457,1739189434648,-1158.02629681,0.00010958,2]
[352599458,1739189434657,-500.0,0.00010958,2]
[352599459,1739189434667,-712.52,0.00010958,2]
[352599460,1739189434677,-500.0,0.00010958,2]
[352599461,1739189434685,-500.0,0.00010958,2]
[352599462,1739189434694,-500.0,0.00010958,2]
[352599463,1739189434704,-500.0,0.00010958,2]
[352599464,1739189434713,-500.0,0.00010958,2]
[352599465,1739189434722,-500.0,0.00010958,2]
[352599466,1739189434732,-1064.4,0.00010958,2]
[352599467,1739189434741,-500.0,0.00010958,2]
[352599468,1739189434750,-500.0,0.00010958,2]
[352599469,1739189434760,-423.76033114,0.00010958,2]
[352599477,1739189438041,-358.16966886,0.00010958,2]
[352599478,1739189438051,-500.0,0.00010958,2]
[352599479,1739189438060,-154.77990034,0.00010958,2]
[352599480,1739189438070,-501.41088043,0.00010958,2]
[352599481,1739189438080,-500.0,0.00010958,2]
[352599482,1739189438090,-655.56,0.00010958,2]
[352599483,1739189438099,-611.22755659,0.00010958,2]
[352599484,1739189438108,-500.0,0.00010958,2]
[352599485,1739189438118,-500.0,0.00010958,2]
[352599486,1739189438127,-500.0,0.00010958,2]
[352599487,1739189438136,-501.44177746,0.00010958,2]
[352599488,1739189438145,-1531.85,0.00010958,2]
[352599489,1739189438155,-500.0,0.00010958,2]
[352599490,1739189438164,-746.0583136,0.00010958,2]
[352599491,1739189438183,-445.2816864,0.00010958,2]
[352599492,1739189438192,-806.14,0.00010958,2]
[352599493,1739189438202,-500.0,0.00010958,2]
[352599494,1739189438212,-500.0,0.00010958,2]
[352599495,1739189438222,-500.0,0.00010958,2]
[352599496,1739189438232,-3275.8,0.00010958,2]
[352599497,1739189438241,-608.74466926,0.00010958,2]
[352599498,1739189438251,-500.0,0.00010958,2]
[352599499,1739189438261,-500.0,0.00010958,2]
[352599500,1739189438271,-500.0,0.00010958,2]
[352599501,1739189438282,-500.0,0.00010958,2]
[352599502,1739189438291,-724.35,0.00010958,2]
[352599503,1739189438300,-500.0,0.00010958,2]
[352599504,1739189438309,-500.0,0.00010958,2]
[352599505,1739189438318,-500.0,0.00010958,2]
[352599506,1739189438328,-500.0,0.00010958,2]
[352599507,1739189438338,-802.4,0.00010958,2]
[352599508,1739189438347,-500.0,0.00010958,2]
[352599509,1739189438357,-7417.1,0.00010958,2]
[352599510,1739189438367,-1489.04,0.00010958,2]
[352599511,1739189438376,-508.68729116,0.00010958,2]
[352599512,1739189438385,-500.0,0.00010958,2]
[352599513,1739189438395,-791.55,0.00010958,2]
[352599514,1739189438404,-813.92,0.00010958,2]
[352599515,1739189438413,-787.61,0.00010958,2]
[352599516,1739189438423,-500.0,0.00010958,2]
[352599517,1739189438433,-606.85,0.00010958,2]
[352599518,1739189438442,-500.0,0.00010958,2]
[352599519,1739189438452,-979.48,0.00010958,2]
[352599520,1739189438461,-205.92,0.00010959,2]
[352599521,1739189438471,-277.11118129,0.00010995,2]
[352599522,1739189438481,-16581.08519484,0.00010995,2]
[352599523,1739189438490,-500.39810013,0.00011095,2]
[352599524,1739189438500,-500.0,0.00011095,2]
[352599525,1739189438510,-502.91356902,0.00011095,2]
[352599526,1739189438520,-451.78512552,0.00011095,2]
[352599527,1739189438535,-500.0,0.00011095,2]
[352599528,1739189438545,-500.0,0.00011095,2]
[352599529,1739189438556,-500.0,0.00011095,2]
[352599530,1739189438566,-500.0,0.00011095,2]
[352599531,1739189438683,-500.0,0.00011095,2]
[352599532,1739189438693,-500.0,0.00011095,2]
[352599533,1739189438704,-500.0,0.00011095,2]
[352599534,1739189438713,-501.35194165,0.00011095,2]
[352599535,1739189438723,-500.0,0.00011095,2]
[352599536,1739189438732,-500.0,0.00011095,2]
[352599537,1739189438742,-500.0,0.00011095,2]
[352599538,1739189438751,-500.0,0.00011095,2]
[352599539,1739189438761,-196.87231661,0.00011095,2]
[352599540,1739189438771,-177.69,0.00011095,2]
[352599541,1739189438782,-500.0,0.00011095,2]
[352599542,1739189438791,-500.0,0.00011095,2]
[352599543,1739189438801,-500.0,0.00011095,2]
[352599544,1739189438811,-500.0,0.00011095,2]
[352599545,1739189438820,-500.0,0.00011095,2]
[352599546,1739189438829,-500.0,0.00011095,2]
[352599547,1739189438839,-500.0,0.00011095,2]
[352599548,1739189438848,-500.0,0.00011095,2]
[352599549,1739189438858,-500.0,0.00011095,2]
[352599550,1739189438867,-500.0,0.00011095,2]
[352599551,1739189438877,-414.73114124,0.00011095,2]
[352599552,1739189438887,-500.0,0.00011095,2]
[352599553,1739189438897,-810.36,0.00011095,2]
[352599554,1739189438906,-500.0,0.00011095,2]
[352599555,1739189438916,-500.0,0.00011095,2]
[352599556,1739189438925,-505.02632934,0.00011095,2]
[352599557,1739189438935,-500.0,0.00011095,2]
[352599558,1739189438944,-512.43,0.00011095,2]
[352599559,1739189438954,-500.0,0.00011095,2]
[352599560,1739189438963,-500.0,0.00011095,2]
[352599561,1739189438973,-500.0,0.00011095,2]
[352599562,1739189438982,-500.0,0.00011095,2]
[352599563,1739189438992,-500.0,0.00011095,2]
[352599564,1739189439001,-500.0,0.00011095,2]
[352599565,1739189439011,-500.0,0.00011095,2]
[352599566,1739189439020,-500.0,0.00011095,2]
[352599567,1739189439032,-500.0,0.00011095,2]
[352599568,1739189439042,-500.0,0.00011095,2]
[352599569,1739189439051,-562.57,0.00011095,2]
[352599570,1739189439061,-500.0,0.00011095,2]
[352599571,1739189439071,-500.0,0.00011095,2]
[352599572,1739189439081,-500.0,0.00011095,2]
[352599573,1739189439090,-502.00504471,0.00011095,2]
[352599574,1739189439100,-500.0,0.00011095,2]
[352599575,1739189439110,-500.0,0.00011095,2]
[352599576,1739189439119,-500.0,0.00011095,2]
[352599577,1739189439128,-500.0,0.00011095,2]
[352599578,1739189439138,-500.0,0.00011095,2]
[352599579,1739189439147,-580.82721414,0.00011095,2]
[352599580,1739189439157,-500.0,0.00011095,2]
[352599581,1739189439166,-500.0,0.00011095,2]
[352599582,1739189439175,-567.75,0.00011095,2]
[352599583,1739189439185,-227.4,0.00011095,2]
[352599584,1739189439194,-500.0,0.00011095,2]
[352599585,1739189439203,-500.0,0.00011095,2]
[352599586,1739189439212,-500.0,0.00011095,2]
[352599587,1739189439222,-500.0,0.00011095,2]
[352599588,1739189439231,-500.0,0.00011095,2]
[352599589,1739189439241,-500.0,0.00011095,2]
[352599590,1739189439250,-500.0,0.00011095,2]
[352599591,1739189439261,-500.0,0.00011095,2]
[352599592,1739189439271,-500.0,0.00011095,2]
[352599593,1739189439281,-500.0,0.00011095,2]
[352599594,1739189439290,-500.0,0.00011095,2]
[352599595,1739189439300,-500.0,0.00011095,2]
[352599596,1739189439310,-500.0,0.00011095,2]
[352599597,1739189439320,-500.0,0.00011095,2]
[352599598,1739189439331,-500.0,0.00011095,2]
[352599599,1739189439341,-500.0,0.00011095,2]
[352599600,1739189439350,-500.0,0.00011095,2]
[352599601,1739189439359,-500.0,0.00011095,2]
[352599602,1739189439369,-500.0,0.00011095,2]
[352599603,1739189439380,-763.0,0.00011095,2]
[352599604,1739189439390,-500.0,0.00011095,2]
[352599605,1739189439399,-500.0,0.00011095,2]
[352599606,1739189439409,-500.0,0.00011095,2]
[352599607,1739189439418,-500.0,0.00011095,2]
[352599608,1739189439428,-500.0,0.00011095,2]
[352599609,1739189439438,-500.0,0.00011095,2]
[352599610,1739189439447,-500.0,0.00011095,2]
[352599611,1739189439456,-500.0,0.00011095,2]
[352599612,1739189439466,-500.0,0.00011095,2]
[352599613,1739189439475,-500.0,0.00011095,2]
[352599614,1739189439485,-536.46,0.00011095,2]
[352599615,1739189439495,-500.0,0.00011095,2]
[352599616,1739189439504,-500.0,0.00011095,2]
[352599617,1739189439514,-500.0,0.00011095,2]
[352599618,1739189439524,-500.0,0.00011095,2]
[352599620,1739189439538,-500.0,0.00011095,2]
[352599621,1739189439548,-500.0,0.00011095,2]
[352599622,1739189439558,-500.0,0.00011095,2]
[352599623,1739189439568,-1594.08,0.00011095,2]
[352599624,1739189439579,-500.0,0.00011095,2]
[352599625,1739189439589,-500.0,0.00011095,2]
[352599626,1739189439598,-500.0,0.00011095,2]
[352599627,1739189439610,-500.0,0.00011095,2]
[352599628,1739189439619,-281.35114352,0.00011095,2]
[352599629,1739189439629,-500.0,0.00011095,2]
[352599630,1739189439639,-500.0,0.00011095,2]
[352599631,1739189439648,-500.0,0.00011095,2]
[352599632,1739189439657,-531.01,0.00011095,2]
[352599634,1739189439667,-537.09189205,0.00011095,2]
[352599635,1739189439676,-500.0,0.00011095,2]
[352599636,1739189439686,-500.0,0.00011095,2]
[352599637,1739189439695,-500.0,0.00011095,2]
[352599638,1739189439705,-500.0,0.00011095,2]
[352599639,1739189439714,-500.0,0.00011095,2]
[352599640,1739189439724,-500.0,0.00011095,2]
[352599641,1739189439733,-491.13579094,0.00011095,2]
[352599642,1739189439743,-500.0,0.00011095,2]
[352599643,1739189439752,-500.0,0.00011095,2]
[352599644,1739189439761,-1871.76,0.00011095,2]
[352599645,1739189439771,-500.0,0.00011095,2]
[352599646,1739189439781,-2807.91,0.00011095,2]
[352599647,1739189439790,-500.0,0.00011095,2]
[352599648,1739189439800,-1308.92,0.00011095,2]
[352599649,1739189439809,-295.2441697,0.00011095,2]
[352599650,1739189439818,-301.21532777,0.00011095,2]
[352599652,1739189439828,-537.15448279,0.00011095,2]
[352599653,1739189439837,-500.0,0.00011095,2]
[352599654,1739189439847,-738.83,0.00011095,2]
[352599655,1739189439856,-500.0,0.00011095,2]
[352599656,1739189439866,-500.0,0.00011095,2]
[352599657,1739189439875,-500.0,0.00011095,2]
[352599659,1739189439885,-500.0,0.00011095,2]
[352599660,1739189439895,-1414.35,0.00011095,2]
[352599661,1739189439904,-500.0,0.00011095,2]
[352599662,1739189439914,-500.0,0.00011095,2]
[352599663,1739189439924,-500.0,0.00011095,2]
[352599664,1739189439934,-526.69,0.00011095,2]
[352599665,1739189439944,-500.0,0.00011095,2]
[352599666,1739189439953,-6325.24,0.00011095,2]
[352599667,1739189439962,-500.0,0.00011095,2]
[352599668,1739189439972,-500.0,0.00011095,2]
[352599669,1739189439982,-500.0,0.00011095,2]
[352599671,1739189439995,-500.0,0.00011095,2]
[352599672,1739189440005,-501.87187501,0.00011095,2]
[352599673,1739189440014,-500.0,0.00011095,2]
[352599674,1739189440023,-500.0,0.00011095,2]
[352599675,1739189440034,-500.0,0.00011095,2]
[352599677,1739189440043,-15991.72,0.00011095,2]
[352599678,1739189440052,-712.52,0.00011095,2]
[352599680,1739189440061,-500.0,0.00011095,2]
[352599681,1739189440071,-500.0,0.00011095,2]
[352599682,1739189440080,-500.0,0.00011095,2]
[352599683,1739189440089,-500.0,0.00011095,2]
[352599684,1739189440098,-500.0,0.00011095,2]
[352599685,1739189440108,-1064.4,0.00011095,2]
[352599686,1739189440118,-500.0,0.00011095,2]
[352599687,1739189440128,-500.0,0.00011095,2]
[352599689,1739189440138,-781.93,0.00011095,2]
[352599691,1739189440147,-500.0,0.00011095,2]
[352599692,1739189440156,-655.56,0.00011095,2]
[352599693,1739189440167,-500.0,0.00011095,2]
[352599694,1739189440176,-500.0,0.00011095,2]
[352599695,1739189440186,-500.0,0.00011095,2]
[352599696,1739189440196,-1531.85,0.00011095,2]
[352599697,1739189440205,-500.0,0.00011095,2]
[352599698,1739189440215,-1191.34,0.00011095,2]
[352599699,1739189440225,-806.14,0.00011095,2]
[352599700,1739189440239,-554.02550826,0.00011095,2]
[352599701,1739189440248,-500.0,0.00011095,2]
[352599702,1739189440258,-3275.8,0.00011095,2]
[352599703,1739189440267,-500.0,0.00011095,2]
[352599704,1739189440277,-500.0,0.00011095,2]
[352599705,1739189440287,-724.35,0.00011095,2]
[352599706,1739189440296,-500.0,0.00011095,2]
[352599707,1739189440305,-500.0,0.00011095,2]
[352599708,1739189440314,-274.11374487,0.00011095,2]
[352599709,1739189440324,-500.0,0.00011095,2]
[352599710,1739189440334,-500.0,0.00011095,2]
[352599711,1739189440344,-802.4,0.00011095,2]
[352599712,1739189440355,-7417.1,0.00011095,2]
[352599713,1739189440364,-1489.04,0.00011095,2]
[352599714,1739189440374,-791.55,0.00011095,2]
[352599715,1739189440383,-813.92,0.00011095,2]
[352599716,1739189440392,-787.61,0.00011095,2]
[352599717,1739189440402,-500.0,0.00011095,2]
[352599718,1739189440411,-606.85,0.00011095,2]
[352599719,1739189440421,-500.0,0.00011095,2]
[352599720,1739189440430,-979.48,0.00011095,2]
[352599721,1739189440440,-500.0,0.00011232,2]
[352599722,1739189440449,-338.57802376,0.00011232,2]
[352599723,1739189440459,-222.21006488,0.00011232,2]
[352599724,1739189440468,-500.0,0.00011232,2]
[352599725,1739189440478,-500.0,0.00011232,2]
[352599726,1739189440488,-500.0,0.00011232,2]
[352599727,1739189440498,-500.0,0.00011232,2]
[352599728,1739189440507,-500.0,0.00011232,2]
[352599729,1739189440516,-500.0,0.00011232,2]
[352599730,1739189440526,-500.0,0.00011232,2]
[352599731,1739189440542,-500.0,0.00011232,2]
[352599732,1739189440551,-384.8637739,0.00011232,2]
[352599733,1739189440560,-359.80670119,0.00011232,2]
[352599734,1739189440570,-500.0,0.00011232,2]
[352599735,1739189440581,-542.0610012,0.00011232,2]
[352599736,1739189440591,-500.0,0.00011232,2]
[352599737,1739189440600,-531.7758061,0.00011232,2]
[352599738,1739189440610,-810.36,0.00011232,2]
[352599739,1739189440620,-500.0,0.00011232,2]
[352599740,1739189440632,-422.85046026,0.00011232,2]
[352599741,1739189440642,-516.62,0.00011232,2]
[352599742,1739189440656,-512.43,0.00011232,2]
[352599743,1739189440666,-500.0,0.00011232,2]
[352599744,1739189440675,-500.0,0.00011232,2]
[352599745,1739189440685,-500.0,0.00011232,2]
[352599746,1739189440694,-500.0,0.00011232,2]
[352599747,1739189440703,-500.0,0.00011232,2]
[352599748,1739189440712,-500.0,0.00011232,2]
[352599749,1739189440722,-455.21463509,0.00011232,2]
[352599750,1739189440731,-562.57,0.00011232,2]
[352599751,1739189440740,-500.0,0.00011232,2]
[352599752,1739189440749,-504.76034347,0.00011232,2]
[352599753,1739189440758,-500.0,0.00011232,2]
[352599754,1739189440767,-507.42529487,0.00011232,2]
[352599755,1739189440776,-500.0,0.00011232,2]
[352599756,1739189440786,-347.58565032,0.00011232,2]
[352599757,1739189440795,-567.75,0.00011232,2]
[352599758,1739189440804,-500.0,0.00011232,2]
[352599759,1739189440813,-500.0,0.00011232,2]
[352599760,1739189440822,-500.0,0.00011232,2]
[352599761,1739189440831,-500.0,0.00011232,2]
[352599762,1739189440841,-500.0,0.00011232,2]
[352599763,1739189440850,-500.0,0.00011232,2]
[352599764,1739189440860,-500.0,0.00011232,2]
[352599765,1739189440870,-500.0,0.00011232,2]
[352599766,1739189440880,-500.0,0.00011232,2]
[352599767,1739189440890,-500.0,0.00011232,2]
[352599768,1739189440899,-500.0,0.00011232,2]
[352599769,1739189440909,-500.0,0.00011232,2]
[352599770,1739189440918,-500.0,0.00011232,2]
[352599771,1739189440927,-500.0,0.00011232,2]
[352599772,1739189440936,-763.0,0.00011232,2]
[352599773,1739189440946,-502.11151147,0.00011232,2]
[352599774,1739189440956,-500.0,0.00011232,2]
[352599775,1739189440965,-500.0,0.00011232,2]
[352599776,1739189440974,-500.0,0.00011232,2]
[352599777,1739189440983,-500.0,0.00011232,2]
[352599778,1739189440992,-536.46,0.00011232,2]
[352599779,1739189441002,-500.0,0.00011232,2]
[352599780,1739189441011,-576.35398343,0.00011232,2]
[352599781,1739189441020,-500.0,0.00011232,2]
[352599782,1739189441030,-500.0,0.00011232,2]
[352599783,1739189441039,-500.0,0.00011232,2]
[352599784,1739189441048,-500.0,0.00011232,2]
[352599785,1739189441058,-1594.08,0.00011232,2]
[352599786,1739189441068,-500.0,0.00011232,2]
[352599787,1739189441167,-500.0,0.00011232,2]
[352599788,1739189441177,-500.0,0.00011232,2]
[352599789,1739189441187,-500.0,0.00011232,2]
[352599790,1739189441196,-500.0,0.00011232,2]
[352599791,1739189441206,-531.01,0.00011232,2]
[352599792,1739189441215,-580.76542839,0.00011232,2]
[352599793,1739189441224,-500.0,0.00011232,2]
[352599794,1739189441234,-500.0,0.00011232,2]
[352599795,1739189441243,-1871.76,0.00011232,2]
[352599796,1739189441253,-2807.91,0.00011232,2]
[352599797,1739189441263,-500.0,0.00011232,2]
[352599798,1739189441274,-1308.92,0.00011232,2]
[352599799,1739189441284,-500.0,0.00011232,2]
[352599800,1739189441296,-738.83,0.00011232,2]
[352599801,1739189441305,-500.0,0.00011232,2]
[352599802,1739189441317,-500.0,0.00011232,2]
[352599803,1739189441327,-512.10644892,0.00011232,2]
[352599804,1739189441337,-1414.35,0.00011232,2]
[352599805,1739189441346,-500.0,0.00011232,2]
[352599806,1739189441355,-526.69,0.00011232,2]
[352599807,1739189441364,-6325.24,0.00011232,2]
[352599808,1739189441374,-500.0,0.00011232,2]
[352599809,1739189441383,-500.0,0.00011232,2]
[352599810,1739189441392,-500.0,0.00011232,2]
[352599811,1739189441402,-500.0,0.00011232,2]
[352599812,1739189441411,-500.0,0.00011232,2]
[352599813,1739189441421,-500.0,0.00011232,2]
[352599814,1739189441430,-500.0,0.00011232,2]
[352599815,1739189441440,-15991.72,0.00011232,2]
[352599816,1739189441449,-712.52,0.00011232,2]
[352599817,1739189441459,-500.0,0.00011232,2]
[352599818,1739189441468,-501.92022201,0.00011232,2]
[352599819,1739189441477,-314.07854037,0.00011232,2]
[352599820,1739189441487,-500.0,0.00011232,2]
[352599821,1739189441496,-1064.4,0.00011232,2]
[352599822,1739189441505,-500.0,0.00011232,2]
[352599823,1739189441515,-781.93,0.00011232,2]
[352599824,1739189441524,-500.0,0.00011232,2]
[352599825,1739189441538,-655.56,0.00011232,2]
[352599826,1739189441547,-500.0,0.00011232,2]
[352599827,1739189441557,-500.0,0.00011232,2]
[352599828,1739189441567,-1531.85,0.00011232,2]
[352599829,1739189441577,-500.0,0.00011232,2]
[352599830,1739189441586,-806.14,0.00011232,2]
[352599831,1739189441596,-1191.34,0.00011232,2]
[352599832,1739189441606,-500.0,0.00011232,2]
[352599833,1739189441616,-3275.8,0.00011232,2]
[352599834,1739189441626,-500.0,0.00011232,2]
[352599835,1739189441635,-500.0,0.00011232,2]
[352599836,1739189441645,-724.35,0.00011232,2]
[352599837,1739189441654,-500.0,0.00011232,2]
[352599838,1739189441663,-500.0,0.00011232,2]
[352599839,1739189441673,-802.4,0.00011232,2]
[352599840,1739189441682,-7417.1,0.00011232,2]
[352599841,1739189441691,-1489.04,0.00011232,2]
[352599842,1739189441700,-791.55,0.00011232,2]
[352599843,1739189441710,-813.92,0.00011232,2]
[352599844,1739189441719,-787.61,0.00011232,2]
[352599845,1739189441729,-500.0,0.00011232,2]
[352599846,1739189441738,-606.85,0.00011232,2]
[352599847,1739189441747,-500.0,0.00011232,2]
[352599848,1739189441757,-500.0,0.00011369,2]
[352599849,1739189441766,-500.0,0.00011369,2]
[352599850,1739189441775,-500.0,0.00011369,2]
[352599851,1739189441787,-500.0,0.00011369,2]
[352599852,1739189441796,-500.0,0.00011369,2]
[352599853,1739189441806,-500.0,0.00011369,2]
[352599854,1739189441816,-500.0,0.00011369,2]
[352599855,1739189441825,-500.0,0.00011369,2]
[352599856,1739189441835,-256.76240735,0.00011369,2]
[352599857,1739189441845,-810.36,0.00011369,2]
[352599858,1739189441855,-512.43,0.00011369,2]
[352599859,1739189441865,-596.65,0.00011369,2]
[352599860,1739189441874,-575.47416564,0.00011369,2]
[352599861,1739189441883,-500.0,0.00011369,2]
[352599862,1739189441893,-500.0,0.00011369,2]
[352599863,1739189441902,-500.0,0.00011369,2]
[352599864,1739189441911,-500.0,0.00011369,2]
[352599865,1739189441921,-562.57,0.00011369,2]
[352599866,1739189441931,-500.0,0.00011369,2]
[352599867,1739189441940,-500.0,0.00011369,2]
[352599868,1739189441949,-500.0,0.00011369,2]
[352599869,1739189441958,-567.75,0.00011369,2]
[352599870,1739189441967,-500.0,0.00011369,2]
[352599871,1739189441976,-500.0,0.00011369,2]
[352599872,1739189441985,-500.0,0.00011369,2]
[352599873,1739189441995,-500.0,0.00011369,2]
[352599874,1739189442004,-500.0,0.00011369,2]
[352599875,1739189442013,-500.0,0.00011369,2]
[352599876,1739189442022,-500.0,0.00011369,2]
[352599877,1739189442031,-500.0,0.00011369,2]
[352599878,1739189442040,-500.0,0.00011369,2]
[352599879,1739189442049,-500.0,0.00011369,2]
[352599880,1739189442059,-763.0,0.00011369,2]
[352599881,1739189442068,-500.0,0.00011369,2]
[352599882,1739189442077,-500.0,0.00011369,2]
[352599883,1739189442086,-500.0,0.00011369,2]
[352599884,1739189442095,-536.46,0.00011369,2]
[352599885,1739189442104,-500.0,0.00011369,2]
[352599886,1739189442113,-500.0,0.00011369,2]
[352599887,1739189442122,-500.0,0.00011369,2]